fUSD/lending_fUSD_20251017
["ID","MTS","AMOUNT","RATE_DAILY","PERIOD"]
[391711656,1760739068099,-500.0,0.00044383,120]
[391711657,1760739068110,-500.0,0.00044383,120]
[391711658,1760739068119,-500.0,0.00044383,120]
[391711659,1760739068129,-500.0,0.00044383,120]
[391711660,1760739068138,-500.0,0.00044383,120]
[391711661,1760739068147,-361.95,0.00044383,120]
[391711662,1760739068157,-500.0,0.00044383,120]
[391711663,1760739068167,-500.0,0.00044383,120]
[391711664,1760739068176,-500.0,0.00044383,120]
[391711665,1760739068186,-581.53211688,0.00044383,120]
[391711666,1760739068196,-500.0,0.00044383,120]
[391711667,1760739068205,-500.0,0.00044383,120]
[391711668,1760739068215,-500.0,0.00044383,120]
[391711669,1760739068224,-500.0,0.00044383,120]
[391711670,1760739068234,-500.0,0.00044383,120]
[391711671,1760739068243,-500.0,0.00044383,120]
[391711672,1760739068253,-500.0,0.00044383,30]
[391711673,1760739068262,-500.0,0.00044383,120]
[391711674,1760739068365,-217.42029736,0.00044383,120]
[391711675,1760739068385,-500.0,0.00044383,120]
[391711676,1760739068396,-516.41,0.00044383,120]
[391711677,1760739068405,-345.11768979,0.00044383,120]
[391711678,1760739068415,-500.0,0.00044383,120]
[391711679,1760739068425,-327.74,0.00044383,120]
[391711680,1760739068435,-273.51,0.00044383,120]
[391711681,1760739068444,-261.99,0.00044383,120]
[391711682,1760739068453,-500.0,0.00044383,120]
[391711683,1760739068463,-500.0,0.00044383,14]
[391711684,1760739068472,-500.0,0.00044383,120]
[391711685,1760739068482,-500.0,0.00044383,120]
[391711686,1760739068491,-2000.0,0.00044383,7]
[391711687,1760739068500,-500.0,0.00044383,120]
[391711688,1760739068510,-500.0,0.00044383,120]
[391711689,1760739068520,-500.0,0.00044383,120]
[391711690,1760739068529,-500.0,0.00044383,120]
[391711691,1760739068539,-500.0,0.00044383,120]
[391711692,1760739068549,-500.0,0.00044383,120]
[391711693,1760739068558,-500.0,0.00044383,120]
[391711694,1760739068567,-500.0,0.00044383,120]
[391711695,1760739068577,-500.0,0.00044383,120]
[391711696,1760739068586,-500.0,0.00044383,120]
[391711697,1760739068596,-500.0,0.00044383,120]
[391711698,1760739068605,-500.0,0.00044383,120]
[391711699,1760739068615,-500.0,0.00044383,120]
[391711700,1760739068625,-500.0,0.00044383,120]
[391711701,1760739068634,-500.0,0.00044383,120]
[391711702,1760739068643,-500.0,0.00044383,120]
[391711703,1760739068653,-500.0,0.00044383,120]
[391711704,1760739068664,-500.0,0.00044383,120]
[391711705,1760739068673,-500.0,0.00044383,120]
[391711706,1760739068683,-500.0,0.00044383,120]
[391711707,1760739068692,-500.0,0.00044383,120]
[391711708,1760739068702,-500.0,0.00044383,120]
[391711709,1760739068711,-500.0,0.00044383,120]
[391711710,1760739068721,-500.0,0.00044383,120]
[391711711,1760739068730,-500.0,0.00044383,120]
[391711712,1760739068739,-500.0,0.00044383,60]
[391711713,1760739068749,-500.0,0.00044383,120]
[391711714,1760739068758,-500.0,0.00044383,120]
[391711715,1760739068767,-500.0,0.00044383,120]
[391711716,1760739068777,-179.92344858,0.00044383,120]
[391711717,1760739068787,-500.0,0.00044383,120]
[391711718,1760739068796,-500.0,0.00044383,120]
[391711719,1760739068806,-500.0,0.00044383,120]
[391711720,1760739068815,-500.0,0.00044383,120]
[391711721,1760739068824,-500.0,0.00044383,120]
[391711722,1760739068834,-511.98081256,0.00044383,120]
[391711723,1760739068844,-500.0,0.00044383,2]
[391711724,1760739068853,-500.0,0.00044383,120]
[391711725,1760739068868,-500.0,0.00044383,120]
[391711726,1760739068878,-500.0,0.00044383,120]
[391711727,1760739068888,-500.0,0.00044383,120]
[391711728,1760739068898,-500.0,0.00044383,120]
[391711729,1760739068908,-622.37310389,0.00044383,120]
[391711730,1760739068917,-500.0,0.00044383,120]
[391711731,1760739068927,-420.98,0.00044383,120]
[391711732,1760739068936,-500.0,0.00044383,120]
[391711733,1760739068949,-500.0,0.00044383,120]
[391711734,1760739068959,-500.0,0.00044383,120]
[391711735,1760739068968,-500.0,0.00044383,120]
[391711736,1760739068977,-500.0,0.00044383,120]
[391711737,1760739068987,-500.0,0.00044383,120]
[391711738,1760739068996,-500.0,0.00044383,120]
[391711739,1760739069006,-500.0,0.00044383,2]
[391711740,1760739069015,-500.0,0.00044383,120]
[391711741,1760739069026,-500.0,0.00044383,120]
[391711742,1760739069035,-500.0,0.00044383,120]
[391711743,1760739069045,-500.0,0.00044383,120]
[391711744,1760739069054,-500.0,0.00044383,120]
[391711745,1760739069063,-359.79763312,0.00044383,120]
[391711746,1760739069072,-500.0,0.00044383,120]
[391711747,1760739069082,-500.0,0.00044383,120]
[391711748,1760739069091,-500.0,0.00044383,120]
[391711749,1760739069101,-586.31,0.00044383,120]
[391711750,1760739069110,-500.0,0.00044383,120]
[391711751,1760739069120,-500.0,0.00044383,120]
[391711752,1760739069130,-505.12,0.00044383,120]
[391711753,1760739069139,-500.0,0.00044383,120]
[391711754,1760739069149,-500.0,0.00044383,120]
[391711755,1760739069159,-500.0,0.00044383,120]
[391711756,1760739069168,-606.88400911,0.00044383,120]
[391711757,1760739069177,-500.0,0.00044383,120]
[391711758,1760739069187,-500.0,0.00044383,120]
[391711759,1760739069196,-500.0,0.00044383,120]
[391711760,1760739069205,-500.0,0.00044383,120]
[391711761,1760739069215,-500.0,0.00044383,120]
[391711762,1760739069224,-500.0,0.00044383,120]
[391711763,1760739069234,-500.0,0.00044383,120]
[391711764,1760739069243,-500.0,0.00044383,120]
[391711765,1760739069252,-500.0,0.00044383,120]
[391711766,1760739069262,-500.0,0.00044383,120]
[391711767,1760739069272,-500.0,0.00044383,120]
[391711768,1760739069281,-500.0,0.00044383,120]
[391711769,1760739069291,-500.0,0.00044383,30]
[391711770,1760739069300,-400.76150999,0.00044383,120]
[391711771,1760739069310,-500.0,0.00044383,30]
[391711772,1760739069319,-1000.0,0.00044383,120]
[391711773,1760739069328,-500.0,0.00044383,120]
[391711774,1760739069338,-500.0,0.00044383,120]
[391711775,1760739069347,-500.0,0.00044383,120]
[391711776,1760739069356,-500.0,0.00044383,120]
[391711777,1760739069366,-300.0,0.00044383,2]
[391711778,1760739069375,-500.0,0.00044383,120]
[391711779,1760739069385,-500.0,0.00044383,120]
[391711780,1760739069395,-700.39,0.00044383,120]
[391711781,1760739069404,-500.0,0.00044383,120]
[391711782,1760739069414,-500.0,0.00044383,7]
[391711783,1760739069423,-500.0,0.00044383,16]
[391711784,1760739069432,-2100.1,0.00044383,120]
[391711785,1760739069441,-500.0,0.00044383,120]
[391711786,1760739069451,-561.4,0.00044383,120]
[391711787,1760739069460,-500.0,0.00044383,120]
[391711788,1760739069470,-500.0,0.00044383,120]
[391711789,1760739069479,-500.0,0.00044383,120]
[391711790,1760739069488,-500.0,0.00044383,120]
[391711791,1760739069498,-500.0,0.00044383,120]
[391711792,1760739069507,-500.0,0.00044383,120]
[391711793,1760739069517,-480.91642837,0.00044383,120]
[391711794,1760739069527,-500.0,0.00044383,120]
[391711795,1760739069536,-500.0,0.00044383,120]
[391711796,1760739069545,-500.0,0.00044383,120]
[391711797,1760739069555,-500.0,0.00044383,120]
[391711798,1760739069565,-711.03,0.00044383,120]
[391711799,1760739069575,-500.0,0.00044383,120]
[391711800,1760739069584,-151.20527436,0.00044384,30]
[391711801,1760739069594,-150.0,0.00044392,30]
[391711802,1760739069603,-170.27442856,0.00044411,30]
[391711803,1760739069614,-150.0,0.00044415,30]
[391711804,1760739069623,-167.42568727,0.00044415,30]
[391711805,1760739069633,-321.39517214,0.00044415,30]
[391711806,1760739069642,-150.0,0.00044415,30]
[391711807,1760739069651,-150.0,0.00044421,30]
[391711808,1760739069661,-150.0,0.00044434,30]
[391711809,1760739069671,-150.0,0.00044451,30]
[391711810,1760739069680,-150.0,0.00044461,30]
[391711811,1760739069690,-167.42568727,0.00044461,30]
[391711812,1760739069700,-321.39517214,0.00044461,30]
[391711813,1760739069710,-4347.61009595,0.00044466,30]
[391711814,1760739069720,-150.0,0.00044468,30]
[391711815,1760739069730,-150.0,0.00044474,30]
[391711816,1760739069744,-150.0,0.00044478,30]
[391711817,1760739069753,-452.40260859,0.00044492,16]
[391711818,1760739069763,-150.0,0.00044499,30]
[391711819,1760739069773,-153.0,0.000445,120]
[391711820,1760739069783,-167.42568727,0.00044507,30]
[391711821,1760739069792,-321.39517214,0.00044507,30]
[391711822,1760739069803,-150.0,0.00044516,30]
[391711823,1760739069813,-150.0,0.00044516,30]
[391711824,1760739069822,-150.0,0.00044516,30]
[391711825,1760739069832,-150.0,0.00044527,30]
[391711826,1760739069842,-150.0,0.0004453,30]
[391711827,1760739069852,-150.0,0.00044532,30]
[391711828,1760739069862,-281.84632492,0.00044532,30]
[391711829,1760739069872,-150.0,0.00044532,30]
[391711830,1760739069881,-402.3003908,0.00044532,30]
[391711831,1760739069890,-150.0,0.00044532,30]
[391711832,1760739069899,-312.92897232,0.00044532,30]
[391711833,1760739069909,-6152.0,0.0004455,120]
[391711834,1760739069919,-167.42568727,0.00044553,30]
[391711835,1760739069928,-321.39517214,0.00044553,30]
[391711836,1760739069939,-150.0,0.00044559,30]
[391711837,1760739069953,-5139.0,0.0004457,2]
[391711838,1760739069963,-150.0,0.0004458,30]
[391711839,1760739069972,-150.0,0.00044583,30]
[391711840,1760739069982,-150.0,0.00044599,30]
[391711841,1760739069994,-167.42568727,0.00044599,30]
[391711842,1760739070003,-150.0,0.00044599,30]
[391711843,1760739070014,-321.39517214,0.00044599,30]
[391711844,1760739070026,-150.0,0.00044623,30]
[391711845,1760739070035,-5139.0,0.00044625,7]
[391711846,1760739070045,-500.0,0.00044625,120]
[391711847,1760739070055,-150.0,0.00044632,30]
[391711848,1760739070064,-2000.0,0.00044644,120]
[391711849,1760739070074,-167.42568727,0.00044645,30]
[391711850,1760739070085,-321.39517214,0.00044645,30]
[391711851,1760739070094,-3685.0,0.00044647,2]
[391711852,1760739070104,-5139.0,0.00044656,2]
[391711853,1760739070115,-151.0,0.00044657,120]
[391711854,1760739070125,-151.0,0.00044657,120]
[391711855,1760739070135,-151.0,0.00044657,120]
[391711856,1760739070144,-151.859186,0.00044657,120]
[391711857,1760739070154,-151.0,0.00044657,120]
[391711858,1760739070163,-151.0,0.00044657,14]
[391711859,1760739070172,-151.0,0.00044657,120]
[391711860,1760739070181,-151.0,0.00044657,120]
[391711861,1760739070191,-151.0,0.00044657,120]
[391711862,1760739070201,-151.0,0.00044657,120]
[391711863,1760739070210,-151.0,0.00044657,120]
[391711864,1760739070219,-246.15,0.00044657,120]
[391711865,1760739070228,-151.0,0.00044657,120]
[391711866,1760739070237,-500.0,0.00044657,120]
[391711867,1760739070247,-161.55748726,0.00044657,120]
[391711868,1760739070256,-151.0,0.00044657,30]
[391711869,1760739070266,-639.97,0.00044657,120]
[391711870,1760739070276,-500.0,0.00044657,120]
[391711871,1760739070386,-500.0,0.00044657,120]
[391711872,1760739070396,-500.0,0.00044657,120]
[391711873,1760739070406,-500.0,0.00044657,120]
[391711874,1760739070416,-206.0,0.00044657,120]
[391711875,1760739070425,-500.0,0.00044657,120]
[391711876,1760739070436,-500.0,0.00044657,2]
[391711877,1760739070445,-500.0,0.00044657,120]
[391711878,1760739070454,-500.0,0.00044657,120]
[391711879,1760739070463,-500.0,0.00044657,120]
[391711880,1760739070472,-500.0,0.00044657,120]
[391711881,1760739070481,-642.37,0.00044657,120]
[391711882,1760739070490,-500.0,0.00044657,120]
[391711883,1760739070499,-519.65,0.00044657,120]
[391711884,1760739070508,-500.0,0.00044657,120]
[391711885,1760739070517,-500.0,0.00044657,120]
[391711886,1760739070526,-500.0,0.00044657,120]
[391711887,1760739070535,-500.0,0.00044657,120]
[391711888,1760739070543,-500.0,0.00044657,120]
[391711889,1760739070552,-500.0,0.00044657,120]
[391711890,1760739070561,-500.0,0.00044657,120]
[391711891,1760739070570,-277.32,0.00044657,120]
[391711892,1760739070580,-500.0,0.00044657,120]
[391711893,1760739070589,-541.67329255,0.00044657,30]
[391711894,1760739070598,-500.0,0.00044657,120]
[391711895,1760739070607,-500.0,0.00044657,120]
[391711896,1760739070616,-516.41,0.00044657,120]
[391711897,1760739070626,-500.0,0.00044657,120]
[391711898,1760739070635,-500.0,0.00044657,120]
[391711899,1760739070644,-500.0,0.00044657,14]
[391711900,1760739070653,-500.0,0.00044657,120]
[391711901,1760739070663,-500.0,0.00044657,120]
[391711902,1760739070672,-2000.0,0.00044657,7]
[391711903,1760739070681,-500.0,0.00044657,120]
[391711904,1760739070690,-500.0,0.00044657,120]
[391711905,1760739070700,-500.0,0.00044657,120]
[391711906,1760739070710,-500.0,0.00044657,120]
[391711907,1760739070719,-500.0,0.00044657,120]
[391711908,1760739070729,-500.0,0.00044657,120]
[391711909,1760739070738,-500.0,0.00044657,120]
[391711910,1760739070748,-500.0,0.00044657,120]
[391711911,1760739070757,-500.0,0.00044657,120]
[391711912,1760739070767,-500.0,0.00044657,120]
[391711913,1760739070776,-500.0,0.00044657,120]
[391711914,1760739070785,-245.91109162,0.00044657,120]
[391711915,1760739070795,-500.0,0.00044657,120]
[391711916,1760739070804,-500.0,0.00044657,120]
[391711917,1760739070815,-500.0,0.00044657,120]
[391711918,1760739070825,-500.0,0.00044657,120]
[391711919,1760739070835,-500.0,0.00044657,120]
[391711920,1760739070845,-500.0,0.00044657,120]
[391711921,1760739070854,-500.0,0.00044657,120]
[391711922,1760739070864,-500.0,0.00044657,60]
[391711923,1760739070875,-500.0,0.00044657,120]
[391711924,1760739070885,-500.0,0.00044657,120]
[391711925,1760739070894,-500.0,0.00044657,120]
[391711926,1760739070904,-500.0,0.00044657,120]
[391711927,1760739070913,-500.0,0.00044657,120]
[391711928,1760739070924,-500.0,0.00044657,120]
[391711929,1760739070934,-201.43947205,0.00044657,120]
[391711930,1760739070945,-500.0,0.00044657,2]
[391711931,1760739070956,-500.0,0.00044657,120]
[391711932,1760739070966,-500.0,0.00044657,120]
[391711933,1760739070975,-500.0,0.00044657,120]
[391711934,1760739070987,-500.0,0.00044657,120]
[391711935,1760739070996,-500.0,0.00044657,120]
[391711936,1760739071007,-500.0,0.00044657,120]
[391711937,1760739071018,-500.0,0.00044657,120]
[391711938,1760739071029,-500.0,0.00044657,120]
[391711939,1760739071039,-500.0,0.00044657,120]
[391711940,1760739071049,-500.0,0.00044657,2]
[391711941,1760739071058,-233.3415576,0.00044657,120]
[391711942,1760739071068,-500.0,0.00044657,120]
[391711943,1760739071078,-500.0,0.00044657,120]
[391711944,1760739071087,-370.97962825,0.00044657,120]
[391711945,1760739071097,-500.0,0.00044657,120]
[391711946,1760739071107,-500.0,0.00044657,120]
[391711947,1760739071116,-500.0,0.00044657,120]
[391711948,1760739071127,-500.0,0.00044657,120]
[391711949,1760739071136,-500.0,0.00044657,120]
[391711950,1760739071146,-500.0,0.00044657,120]
[391711951,1760739071155,-500.0,0.00044657,120]
[391711952,1760739071165,-603.75267034,0.00044657,120]
[391711953,1760739071175,-500.0,0.00044657,120]
[391711954,1760739071184,-500.0,0.00044657,120]
[391711955,1760739071193,-500.0,0.00044657,120]
[391711956,1760739071203,-500.0,0.00044657,120]
[391711957,1760739071212,-500.0,0.00044657,120]
[391711958,1760739071222,-500.0,0.00044657,120]
[391711959,1760739071233,-500.0,0.00044657,120]
[391711960,1760739071242,-567.23304576,0.00044657,30]
[391711961,1760739071252,-1000.0,0.00044657,120]
[391711962,1760739071262,-500.0,0.00044657,120]
[391711963,1760739071271,-500.0,0.00044657,120]
[391711964,1760739071281,-500.0,0.00044657,120]
[391711965,1760739071291,-300.0,0.00044657,2]
[391711966,1760739071301,-500.0,0.00044657,120]
[391711967,1760739071310,-500.0,0.00044657,120]
[391711968,1760739071321,-700.39,0.00044657,120]
[391711969,1760739071331,-397.1,0.00044657,120]
[391711970,1760739071341,-500.0,0.00044657,7]
[391711971,1760739071355,-2100.1,0.00044657,120]
[391711972,1760739071364,-290.64,0.00044657,120]
[391711973,1760739071378,-561.4,0.00044657,120]
[391711974,1760739071387,-500.0,0.00044657,120]
[391711975,1760739071397,-500.0,0.00044657,120]
[391711976,1760739071407,-500.0,0.00044657,120]
[391711977,1760739071417,-500.0,0.00044657,120]
[391711978,1760739071427,-500.0,0.00044657,120]
[391711979,1760739071437,-500.0,0.00044657,120]
[391711980,1760739071447,-500.0,0.00044657,120]
[391711981,1760739071457,-711.03,0.00044657,120]
[391711982,1760739071467,-500.0,0.00044657,120]
[391711983,1760739071477,-150.0,0.00044668,30]
[391711984,1760739071487,-150.0,0.00044668,30]
[391711985,1760739071497,-150.0,0.00044668,30]
[391711986,1760739071507,-150.0,0.00044668,30]
[391711987,1760739071516,-150.0,0.00044668,30]
[391711988,1760739071526,-150.0,0.00044681,30]
[391711989,1760739071535,-150.0,0.00044685,30]
[391711990,1760739071544,-167.42568727,0.00044691,30]
[391711991,1760739071555,-321.39517214,0.00044691,30]
[391711992,1760739071565,-230.64,0.000447,2]
[391711993,1760739071574,-958.0,0.000447,30]
[391711994,1760739071584,-300.0,0.000447,30]
[391711995,1760739071595,-195.0,0.000447,30]
[391711996,1760739071605,-150.0,0.00044707,30]
[391711997,1760739071615,-200.0,0.00044717,120]
[391711998,1760739071626,-150.0,0.00044736,30]
[391711999,1760739071637,-167.42568727,0.00044736,30]
[391712000,1760739071647,-321.39517214,0.00044736,30]
[391712001,1760739071658,-150.0,0.00044738,30]
[391712002,1760739071667,-150.0,0.00044752,30]
[391712003,1760739071677,-150.0,0.00044764,30]
[391712004,1760739071687,-150.0,0.00044776,30]
[391712005,1760739071696,-167.42568727,0.00044782,30]
[391712006,1760739071707,-321.39517214,0.00044782,30]
[391712007,1760739071716,-150.0,0.00044791,30]
[391712008,1760739071726,-230.25,0.000448,30]
[391712009,1760739071736,-150.0,0.00044805,30]
[391712010,1760739071746,-150.0,0.00044819,30]
[391712011,1760739071756,-167.42568727,0.00044828,30]
[391712012,1760739071766,-321.39517214,0.00044828,30]
[391712013,1760739071775,-150.0,0.00044836,30]
[391712014,1760739071785,-150.0,0.00044844,30]
[391712015,1760739071795,-150.0,0.00044847,30]
[391712016,1760739071805,-150.0,0.00044857,30]
[391712017,1760739071815,-150.0,0.00044857,30]
[391712018,1760739071824,-150.0,0.00044874,30]
[391712019,1760739071835,-167.42568727,0.00044874,30]
[391712020,1760739071845,-321.39517214,0.00044874,30]
[391712021,1760739071855,-150.0,0.00044884,30]
[391712022,1760739071865,-304.54965627,0.0004489,120]
[391712023,1760739071875,-150.0,0.0004489,30]
[391712024,1760739071885,-150.0,0.00044896,30]
[391712025,1760739071894,-2132.371875,0.000449,30]
[391712026,1760739071904,-1034.63,0.000449,7]
[391712027,1760739071914,-3594.81602736,0.000449,15]
[391712028,1760739071924,-356.86265636,0.000449,2]
[391712029,1760739071934,-170.27442856,0.00044904,30]
[391712030,1760739071947,-167.42568727,0.0004492,30]
[391712031,1760739071957,-321.39517214,0.0004492,30]
[391712032,1760739071966,-150.0,0.0004492,30]
[391712033,1760739071976,-150.0,0.0004492,30]
[391712034,1760739071986,-1425.0,0.00044921,2]
[391712035,1760739071996,-150.0,0.00044929,30]
[391712036,1760739072006,-490.0,0.00044931,120]
[391712037,1760739072015,-500.0,0.00044931,120]
[391712038,1760739072027,-500.0,0.00044931,2]
[391712039,1760739072036,-500.0,0.00044931,120]
[391712040,1760739072046,-500.0,0.00044931,120]
[391712041,1760739072055,-500.0,0.00044931,120]
[391712042,1760739072064,-500.0,0.00044931,120]
[391712043,1760739072073,-156.055358,0.00044931,120]
[391712044,1760739072082,-156.055358,0.00044931,120]
[391712045,1760739072092,-500.0,0.00044931,120]
[391712046,1760739072101,-156.055358,0.00044931,120]
[391712047,1760739072111,-156.055358,0.00044931,120]
[391712048,1760739072120,-500.0,0.00044931,120]
[391712049,1760739072130,-500.0,0.00044931,120]
[391712050,1760739072139,-500.0,0.00044931,120]
[391712051,1760739072246,-500.0,0.00044931,120]
[391712052,1760739072256,-500.0,0.00044931,120]
[391712053,1760739072266,-151.0,0.00044931,120]
[391712054,1760739072275,-151.0,0.00044931,120]
[391712055,1760739072285,-151.0,0.00044931,120]
[391712056,1760739072294,-151.0,0.00044931,120]
[391712057,1760739072304,-199.769396,0.00044931,120]
[391712058,1760739072314,-500.0,0.00044931,120]
[391712059,1760739072324,-500.0,0.00044931,120]
[391712060,1760739072333,-151.0,0.00044931,120]
[391712061,1760739072343,-151.0,0.00044931,120]
[391712062,1760739072353,-500.0,0.00044931,120]
[391712063,1760739072363,-151.0,0.00044931,120]
[391712064,1760739072373,-151.0,0.00044931,120]
[391712065,1760739072382,-151.0,0.00044931,120]
[391712066,1760739072393,-151.0,0.00044931,120]
[391712067,1760739072403,-500.0,0.00044931,120]
[391712068,1760739072412,-516.41,0.00044931,120]
[391712069,1760739072422,-229.716232,0.00044931,120]
[391712070,1760739072432,-500.0,0.00044931,120]
[391712071,1760739072441,-151.0,0.00044931,120]
[391712072,1760739072451,-151.0,0.00044931,30]
[391712073,1760739072460,-151.0,0.00044931,120]
[391712074,1760739072471,-151.0,0.00044931,120]
[391712075,1760739072481,-182.47730064,0.00044931,120]
[391712076,1760739072490,-232.24,0.00044931,120]
[391712077,1760739072500,-151.0,0.00044931,120]
[391712078,1760739072509,-151.0,0.00044931,120]
[391712079,1760739072519,-500.0,0.00044931,14]
[391712080,1760739072529,-500.0,0.00044931,120]
[391712081,1760739072539,-500.0,0.00044931,120]
[391712082,1760739072549,-151.0,0.00044931,30]
[391712083,1760739072558,-151.0,0.00044931,120]
[391712084,1760739072568,-151.0,0.00044931,120]
[391712085,1760739072578,-151.0,0.00044931,120]
[391712086,1760739072587,-151.0,0.00044931,120]
[391712087,1760739072597,-186.528618,0.00044931,120]
[391712088,1760739072606,-151.0000002,0.00044931,90]
[391712089,1760739072616,-240.275471,0.00044931,120]
[391712090,1760739072626,-151.0,0.00044931,120]
[391712091,1760739072636,-151.0,0.00044931,120]
[391712092,1760739072645,-151.0,0.00044931,120]
[391712093,1760739072655,-151.0,0.00044931,120]
[391712094,1760739072665,-500.0,0.00044931,120]
[391712095,1760739072674,-500.0,0.00044931,120]
[391712096,1760739072684,-151.0,0.00044931,120]
[391712097,1760739072694,-151.0,0.00044931,120]
[391712098,1760739072703,-151.0,0.00044931,120]
[391712099,1760739072712,-500.0,0.00044931,120]
[391712100,1760739072721,-151.0,0.00044931,120]
[391712101,1760739072731,-500.0,0.00044931,120]
[391712102,1760739072740,-500.0,0.00044931,120]
[391712103,1760739072750,-500.0,0.00044931,120]
[391712104,1760739072759,-500.0,0.00044931,120]
[391712105,1760739072769,-500.0,0.00044931,120]
[391712106,1760739072778,-201.93736586,0.00044931,120]
[391712107,1760739072787,-500.0,0.00044931,120]
[391712108,1760739072799,-500.0,0.00044931,120]
[391712109,1760739072809,-500.0,0.00044931,120]
[391712110,1760739072819,-500.0,0.00044931,120]
[391712111,1760739072828,-500.0,0.00044931,120]
[391712112,1760739072838,-500.0,0.00044931,120]
[391712113,1760739072847,-500.0,0.00044931,60]
[391712114,1760739072857,-500.0,0.00044931,120]
[391712115,1760739072866,-500.0,0.00044931,120]
[391712116,1760739072875,-500.0,0.00044931,120]
[391712117,1760739072885,-500.0,0.00044931,120]
[391712118,1760739072894,-500.0,0.00044931,120]
[391712119,1760739072903,-500.0,0.00044931,120]
[391712120,1760739072913,-500.0,0.00044931,120]
[391712121,1760739072922,-500.0,0.00044931,120]
[391712122,1760739072933,-500.0,0.00044931,120]
[391712123,1760739072943,-500.0,0.00044931,120]
[391712124,1760739072959,-500.0,0.00044931,120]
[391712125,1760739072968,-500.0,0.00044931,120]
[391712126,1760739072977,-500.0,0.00044931,120]
[391712127,1760739072987,-500.0,0.00044931,2]
[391712128,1760739072996,-150.99711564,0.00044931,120]
[391712129,1760739073006,-500.0,0.00044931,120]
[391712130,1760739073016,-500.0,0.00044931,120]
[391712131,1760739073026,-500.0,0.00044931,120]
[391712132,1760739073036,-503.14608184,0.00044931,120]
[391712133,1760739073045,-500.0,0.00044931,120]
[391712134,1760739073054,-500.0,0.00044931,120]
[391712135,1760739073063,-500.0,0.00044931,120]
[391712136,1760739073073,-500.0,0.00044931,120]
[391712137,1760739073081,-268.16,0.00044931,120]
[391712138,1760739073091,-500.0,0.00044931,120]
[391712139,1760739073100,-500.0,0.00044931,120]
[391712140,1760739073110,-1000.0,0.00044931,120]
[391712141,1760739073119,-500.0,0.00044931,120]
[391712142,1760739073128,-500.0,0.00044931,120]
[391712143,1760739073138,-500.0,0.00044931,120]
[391712144,1760739073147,-700.39,0.00044931,120]
[391712145,1760739073156,-500.0,0.00044931,7]
[391712146,1760739073166,-2100.1,0.00044931,120]
[391712147,1760739073175,-561.4,0.00044931,120]
[391712148,1760739073184,-500.0,0.00044931,120]
[391712149,1760739073192,-500.0,0.00044931,120]
[391712150,1760739073202,-500.0,0.00044931,120]
[391712151,1760739073211,-500.0,0.00044931,120]
[391712152,1760739073220,-554.93,0.00044931,120]
[391712153,1760739073229,-500.0,0.00044931,120]
[391712154,1760739073239,-500.0,0.00044931,120]
[391712155,1760739073249,-711.03,0.00044931,120]